[Event "Early-Titled-Tuesday-Blitz-September-12-2023"]
[Site "Chess.com"]
[Date "2023.09.12"]
[Round "5"]
[White "GodDMuhammad"]
[Black "ural58"]
[Result "0-1"]
[WhiteElo "2349"]
[BlackElo "2564"]
[TimeControl "180+1"]
[EndTime "8:52:43 PDT"]
[Termination "ural58 won by resignation"]

1. f4 {[%clk 0:03:00.9]} 1... e5 {[%clk 0:02:58.9]} 2. fxe5 {[%clk 0:02:56.5]}
2... d6 {[%clk 0:02:58.9]} 3. e4 {[%clk 0:02:56.7]} 3... Nc6 {[%clk 0:02:58.1]}
4. Nf3 {[%clk 0:02:57.1]} 4... dxe5 {[%clk 0:02:57.8]} 5. Bc4 {[%clk 0:02:56.9]}
5... Bc5 {[%clk 0:02:57.3]} 6. c3 {[%clk 0:02:57.3]} 6... Bg4 {[%clk 0:02:47.1]}
7. b4 {[%clk 0:02:56.4]} 7... Bb6 {[%clk 0:02:46.5]} 8. b5 {[%clk 0:02:56.5]}
8... Na5 {[%clk 0:02:02.4]} 9. Bxf7+ {[%clk 0:02:54.8]} 9... Kxf7 {[%clk
0:02:02.2]} 10. Nxe5+ {[%clk 0:02:54.4]} 10... Ke6 {[%clk 0:02:01.7]} 11. Qxg4+
{[%clk 0:01:58.3]} 11... Kxe5 {[%clk 0:02:01.6]} 12. Ba3 {[%clk 0:01:51.2]}
12... Nh6 {[%clk 0:01:32.6]} 13. Rf1 {[%clk 0:01:44.6]} 13... Nxg4 {[%clk
0:01:31.2]} 14. d4+ {[%clk 0:01:38.9]} 14... Ke6 {[%clk 0:01:27.5]} 15. Nd2
{[%clk 0:01:37.4]} 15... Ne3 {[%clk 0:01:16.3]} 16. Ke2 {[%clk 0:01:31.1]} 16...
Nxf1 {[%clk 0:01:15.7]} 17. Rxf1 {[%clk 0:01:32]} 17... Qh4 {[%clk 0:01:13.2]}
18. Rf5 {[%clk 0:01:25.1]} 18... Qg4+ {[%clk 0:01:10.8]} 19. Kd3 {[%clk
0:01:23.7]} 19... Qxf5 {[%clk 0:01:07.7]} 20. exf5+ {[%clk 0:01:23.5]} 20...
Kxf5 {[%clk 0:01:08.3]} 21. Ne4 {[%clk 0:01:21.1]} 21... Kg6 {[%clk 0:01:06.7]}
22. g4 {[%clk 0:01:19.5]} 22... h5 {[%clk 0:01:05.9]} 23. g5 {[%clk 0:01:18.8]}
23... h4 {[%clk 0:01:05.3]} 24. h3 {[%clk 0:01:18.3]} 24... Rhe8 {[%clk
0:01:04.1]} 0-1

[Event "Early-Titled-Tuesday-Blitz-September-12-2023"]
[Site "Chess.com"]
[Date "2023.09.12"]
[Round "5"]
[White "Beca95"]
[Black "Mikasinski"]
[Result "1-0"]
[WhiteElo "2962"]
[BlackElo "2676"]
[TimeControl "180+1"]
[EndTime "8:52:51 PDT"]
[Termination "Beca95 won by resignation"]

1. d4 {[%clk 0:03:00.9]} 1... Nf6 {[%clk 0:03:00]} 2. Nf3 {[%clk 0:03:01.3]}
2... g6 {[%clk 0:03:00.1]} 3. Bg5 {[%clk 0:03:01.5]} 3... Bg7 {[%clk 0:03:00.3]}
4. Nbd2 {[%clk 0:03:02.2]} 4... O-O {[%clk 0:03:00.8]} 5. c3 {[%clk 0:03:02.8]}
5... d6 {[%clk 0:03:01.2]} 6. e4 {[%clk 0:03:02.9]} 6... c5 {[%clk 0:03:01.8]}
7. d5 {[%clk 0:03:02.3]} 7... h6 {[%clk 0:03:00.6]} 8. Bh4 {[%clk 0:02:58]} 8...
Re8 {[%clk 0:02:56.7]} 9. Bc4 {[%clk 0:02:57]} 9... Qc7 {[%clk 0:02:57.2]} 10.
O-O {[%clk 0:02:52]} 10... Nbd7 {[%clk 0:02:56.1]} 11. h3 {[%clk 0:02:51.4]}
11... a6 {[%clk 0:02:56.2]} 12. a4 {[%clk 0:02:50.9]} 12... Rb8 {[%clk
0:02:56.9]} 13. a5 {[%clk 0:02:48.9]} 13... Nh5 {[%clk 0:02:57.4]} 14. Ne1
{[%clk 0:02:15]} 14... b5 {[%clk 0:02:55.7]} 15. axb6 {[%clk 0:02:14.6]} 15...
Rxb6 {[%clk 0:02:54.2]} 16. Nd3 {[%clk 0:02:11]} 16... Ne5 {[%clk 0:02:52.9]}
17. Nxe5 {[%clk 0:02:10.8]} 17... Bxe5 {[%clk 0:02:53.2]} 18. Ra2 {[%clk
0:02:09.8]} 18... Nf4 {[%clk 0:02:42.9]} 19. Bg3 {[%clk 0:02:09.3]} 19... Nh5
{[%clk 0:02:33]} 20. Bxe5 {[%clk 0:02:08.7]} 20... dxe5 {[%clk 0:02:33.9]} 21.
Re1 {[%clk 0:02:06.9]} 21... Rf6 {[%clk 0:02:29.6]} 22. Bf1 {[%clk 0:02:05.8]}
22... Nf4 {[%clk 0:02:10.3]} 23. Nc4 {[%clk 0:02:04.9]} 23... h5 {[%clk
0:02:07.5]} 24. h4 {[%clk 0:01:48.3]} 24... Bg4 {[%clk 0:02:04.1]} 25. f3 {[%clk
0:01:45.6]} 25... Bd7 {[%clk 0:02:01]} 26. Kh2 {[%clk 0:01:36]} 26... e6 {[%clk
0:01:50.3]} 27. d6 {[%clk 0:01:34.4]} 27... Qd8 {[%clk 0:01:45.9]} 28. g3 {[%clk
0:01:32.9]} 28... Bb5 {[%clk 0:01:42]} 29. Nxe5 {[%clk 0:01:27.3]} 29... c4
{[%clk 0:01:19]} 30. Qd4 {[%clk 0:01:26.5]} 30... Nd3 {[%clk 0:01:17.2]} 31.
Bxd3 {[%clk 0:01:26.2]} 31... cxd3 {[%clk 0:01:17.6]} 32. c4 {[%clk 0:01:26.7]}
32... d2 {[%clk 0:01:10.8]} 33. Qxd2 {[%clk 0:01:25.6]} 33... Bd7 {[%clk
0:01:08.6]} 34. b4 {[%clk 0:01:24.9]} 34... Bc8 {[%clk 0:01:01.4]} 35. c5 {[%clk
0:01:24.5]} 1-0

[Event "Early-Titled-Tuesday-Blitz-September-12-2023"]
[Site "Chess.com"]
[Date "2023.09.12"]
[Round "5"]
[White "DrDreBeats"]
[Black "AndresDelgado77"]
[Result "1-0"]
[WhiteElo "2529"]
[BlackElo "2301"]
[TimeControl "180+1"]
[EndTime "8:52:51 PDT"]
[Termination "DrDreBeats won on time"]

1. e4 {[%clk 0:02:59.7]} 1... e6 {[%clk 0:02:59.2]} 2. d4 {[%clk 0:02:58.8]}
2... d5 {[%clk 0:02:58.7]} 3. exd5 {[%clk 0:02:59.7]} 3... exd5 {[%clk
0:02:56.3]} 4. c4 {[%clk 0:03:00.6]} 4... Nf6 {[%clk 0:02:55.7]} 5. Nc3 {[%clk
0:03:01.5]} 5... Bb4 {[%clk 0:02:56.2]} 6. Bd3 {[%clk 0:03:02.1]} 6... O-O
{[%clk 0:02:46]} 7. Nf3 {[%clk 0:03:02.2]} 7... Re8+ {[%clk 0:02:38]} 8. Be3
{[%clk 0:03:02.1]} 8... dxc4 {[%clk 0:02:00]} 9. Bxc4 {[%clk 0:03:03]} 9... Nd5
{[%clk 0:01:28.9]} 10. O-O {[%clk 0:03:01]} 10... Bxc3 {[%clk 0:01:02.6]} 11.
bxc3 {[%clk 0:02:59.9]} 11... Nc6 {[%clk 0:01:03]} 12. Rc1 {[%clk 0:02:56.4]}
12... Bg4 {[%clk 0:00:35.7]} 13. h3 {[%clk 0:02:47.2]} 13... Bh5 {[%clk
0:00:33.4]} 14. g4 {[%clk 0:02:46.9]} 14... Bg6 {[%clk 0:00:31.8]} 15. Re1
{[%clk 0:02:47.2]} 15... Qd6 {[%clk 0:00:29.1]} 16. Bxd5 {[%clk 0:02:39.5]}
16... Qxd5 {[%clk 0:00:28.9]} 17. c4 {[%clk 0:02:40.4]} 17... Qa5 {[%clk
0:00:25.2]} 18. Qb3 {[%clk 0:02:36.7]} 18... b6 {[%clk 0:00:22]} 19. d5 {[%clk
0:02:34.5]} 19... Ne5 {[%clk 0:00:20.3]} 20. Nxe5 {[%clk 0:02:20]} 20... Rxe5
{[%clk 0:00:20.3]} 21. f4 {[%clk 0:02:10.7]} 21... Re4 {[%clk 0:00:12.9]} 22. f5
{[%clk 0:02:10]} 22... Rae8 {[%clk 0:00:13.2]} 23. fxg6 {[%clk 0:02:10.1]} 23...
Rxe3 {[%clk 0:00:10.7]} 24. Rxe3 {[%clk 0:02:09.2]} 24... Qc5 {[%clk 0:00:10.3]}
25. gxf7+ {[%clk 0:02:08.5]} 25... Kxf7 {[%clk 0:00:09.9]} 26. Re1 {[%clk
0:02:08.7]} 1-0

[Event "Early-Titled-Tuesday-Blitz-September-12-2023"]
[Site "Chess.com"]
[Date "2023.09.12"]
[Round "5"]
[White "Predator0608"]
[Black "ckgchess"]
[Result "0-1"]
[WhiteElo "2581"]
[BlackElo "2867"]
[TimeControl "180+1"]
[EndTime "8:52:58 PDT"]
[Termination "ckgchess won by resignation"]

1. f4 {[%clk 0:03:00.9]} 1... Nh6 {[%clk 0:02:57.7]} 2. Nf3 {[%clk 0:03:00.8]}
2... d5 {[%clk 0:02:57.3]} 3. g3 {[%clk 0:03:01]} 3... g6 {[%clk 0:02:57.1]} 4.
Bg2 {[%clk 0:03:01.1]} 4... Bg7 {[%clk 0:02:57.6]} 5. O-O {[%clk 0:02:59.9]}
5... O-O {[%clk 0:02:58.3]} 6. d3 {[%clk 0:03:00.5]} 6... d4 {[%clk 0:02:58.1]}
7. c3 {[%clk 0:02:55.1]} 7... c5 {[%clk 0:02:58]} 8. e3 {[%clk 0:02:52.6]} 8...
dxe3 {[%clk 0:02:24.1]} 9. Bxe3 {[%clk 0:02:53.5]} 9... Qb6 {[%clk 0:02:24.6]}
10. b4 {[%clk 0:02:21.3]} 10... Na6 {[%clk 0:02:24.5]} 11. a4 {[%clk 0:02:09.8]}
11... Nxb4 {[%clk 0:02:04.3]} 12. cxb4 {[%clk 0:02:08.9]} 12... Bxa1 {[%clk
0:02:05.2]} 13. Bxc5 {[%clk 0:02:08.7]} 13... Qc7 {[%clk 0:02:03.5]} 14. Re1
{[%clk 0:02:01.5]} 14... Re8 {[%clk 0:01:54.1]} 15. Qb3 {[%clk 0:01:34.7]} 15...
b6 {[%clk 0:01:46.6]} 16. Ne5 {[%clk 0:01:26.3]} 16... Be6 {[%clk 0:01:37]} 17.
Qa3 {[%clk 0:01:13.8]} 17... Bxe5 {[%clk 0:01:28.4]} 18. Rxe5 {[%clk 0:01:04.5]}
18... bxc5 {[%clk 0:01:27.6]} 19. Rxc5 {[%clk 0:01:01.7]} 19... Qd6 {[%clk
0:01:25.6]} 20. Bxa8 {[%clk 0:01:01.6]} 20... Qd4+ {[%clk 0:01:22.9]} 21. Kf1
{[%clk 0:00:55.1]} 21... Rxa8 {[%clk 0:01:23.8]} 22. Qc3 {[%clk 0:00:54.5]}
22... Qe3 {[%clk 0:01:10.5]} 23. Kg2 {[%clk 0:00:50.3]} 23... Qe2+ {[%clk
0:01:08.5]} 24. Kg1 {[%clk 0:00:49.3]} 24... Bh3 {[%clk 0:01:03.2]} 0-1

[Event "Early-Titled-Tuesday-Blitz-September-12-2023"]
[Site "Chess.com"]
[Date "2023.09.12"]
[Round "5"]
[White "ferrufino64"]
[Black "santosalberto1987"]
[Result "0-1"]
[WhiteElo "2280"]
[BlackElo "2549"]
[TimeControl "180+1"]
[EndTime "8:52:59 PDT"]
[Termination "santosalberto1987 won by resignation"]

1. e4 {[%clk 0:03:00.9]} 1... e6 {[%clk 0:02:59.4]} 2. d4 {[%clk 0:02:59.5]}
2... d5 {[%clk 0:02:59.9]} 3. Nc3 {[%clk 0:02:59.1]} 3... Nf6 {[%clk 0:02:59.7]}
4. e5 {[%clk 0:02:58.7]} 4... Nfd7 {[%clk 0:02:59.8]} 5. f4 {[%clk 0:02:59.4]}
5... c5 {[%clk 0:03:00.4]} 6. Nf3 {[%clk 0:02:59.4]} 6... Nc6 {[%clk 0:03:01]}
7. Be3 {[%clk 0:02:58.9]} 7... Qb6 {[%clk 0:03:01.6]} 8. Na4 {[%clk 0:02:58.6]}
8... Qa5+ {[%clk 0:03:01.8]} 9. c3 {[%clk 0:02:58.5]} 9... b6 {[%clk 0:03:02.2]}
10. a3 {[%clk 0:02:33]} 10... c4 {[%clk 0:03:02.1]} 11. b4 {[%clk 0:02:23.5]}
11... cxb3 {[%clk 0:03:02.1]} 12. Qxb3 {[%clk 0:02:23.8]} 12... Ba6 {[%clk
0:03:02.7]} 13. Kf2 {[%clk 0:02:19]} 13... Be7 {[%clk 0:02:55]} 14. Bxa6 {[%clk
0:02:00.8]} 14... Qxa6 {[%clk 0:02:54.8]} 15. Rhf1 {[%clk 0:01:59.5]} 15... Rc8
{[%clk 0:02:54]} 16. Nb2 {[%clk 0:01:58.4]} 16... Na5 {[%clk 0:02:53.5]} 17. Qc2
{[%clk 0:01:55.9]} 17... Nc4 {[%clk 0:02:53.4]} 18. Nxc4 {[%clk 0:01:54.1]}
18... Rxc4 {[%clk 0:02:53.2]} 19. Nd2 {[%clk 0:01:51.5]} 19... Rc6 {[%clk
0:02:52.3]} 20. a4 {[%clk 0:01:51.6]} 20... O-O {[%clk 0:02:51.3]} 21. Qb3
{[%clk 0:01:47.1]} 21... Rfc8 {[%clk 0:02:50.5]} 22. Rac1 {[%clk 0:01:47.3]}
22... Qd3 {[%clk 0:02:43.7]} 23. Nb1 {[%clk 0:01:41.9]} 23... Qc4 {[%clk
0:02:41]} 24. Qd1 {[%clk 0:01:36.1]} 24... Qa2+ {[%clk 0:02:35.8]} 25. Kg1
{[%clk 0:01:35.2]} 25... Rc4 {[%clk 0:02:34.6]} 26. a5 {[%clk 0:01:31.2]} 26...
Qxa5 {[%clk 0:02:31.2]} 27. f5 {[%clk 0:01:31.7]} 27... exf5 {[%clk 0:02:28.7]}
28. Rxf5 {[%clk 0:01:29.4]} 28... Ba3 {[%clk 0:02:08.9]} 29. Rc2 {[%clk
0:01:25.8]} 29... Qa4 {[%clk 0:01:52.9]} 30. Bd2 {[%clk 0:00:56.7]} 30... Nf8
{[%clk 0:01:46.9]} 31. Be1 {[%clk 0:00:56]} 31... Ne6 {[%clk 0:01:43.2]} 32. Qe2
{[%clk 0:00:55.4]} 32... Nxd4 {[%clk 0:01:38.6]} 33. Qg4 {[%clk 0:00:48]} 33...
Nxc2 {[%clk 0:01:31.6]} 34. Qh3 {[%clk 0:00:42.6]} 0-1

[Event "Early-Titled-Tuesday-Blitz-September-12-2023"]
[Site "Chess.com"]
[Date "2023.09.12"]
[Round "5"]
[White "GiorgianBarbosa"]
[Black "Boundless_Strike"]
[Result "0-1"]
[WhiteElo "2446"]
[BlackElo "2629"]
[TimeControl "180+1"]
[EndTime "8:53:02 PDT"]
[Termination "Boundless_Strike won by checkmate"]

1. c4 {[%clk 0:02:50.4]} 1... e5 {[%clk 0:02:35.4]} 2. Nc3 {[%clk 0:02:47.2]}
2... Nc6 {[%clk 0:02:32.9]} 3. e4 {[%clk 0:02:44.8]} 3... Bc5 {[%clk 0:02:28.4]}
4. Nf3 {[%clk 0:02:36.1]} 4... d6 {[%clk 0:02:14.8]} 5. Be2 {[%clk 0:02:19]}
5... f5 {[%clk 0:02:11.6]} 6. O-O {[%clk 0:02:18]} 6... Nf6 {[%clk 0:02:01.7]}
7. d3 {[%clk 0:02:18]} 7... f4 {[%clk 0:01:56.1]} 8. Nd5 {[%clk 0:02:11.3]} 8...
O-O {[%clk 0:01:53.2]} 9. a3 {[%clk 0:02:06.7]} 9... a5 {[%clk 0:01:50.6]} 10.
Rb1 {[%clk 0:02:06.2]} 10... Nxd5 {[%clk 0:01:39.4]} 11. cxd5 {[%clk 0:02:06.4]}
11... Nd4 {[%clk 0:01:39.7]} 12. Nxd4 {[%clk 0:02:06.1]} 12... Bxd4 {[%clk
0:01:40]} 13. Bd2 {[%clk 0:02:02]} 13... Qh4 {[%clk 0:01:10.3]} 14. Bf3 {[%clk
0:01:47.4]} 14... Rf6 {[%clk 0:01:08.7]} 15. Re1 {[%clk 0:00:52.1]} 15... Qxf2+
{[%clk 0:01:05.7]} 16. Kh1 {[%clk 0:00:52.2]} 16... Rh6 {[%clk 0:01:03.5]} 17.
Bc3 {[%clk 0:00:35.9]} 17... Rxh2+ {[%clk 0:01:02.8]} 18. Kxh2 {[%clk
0:00:33.8]} 18... Qh4# {[%clk 0:01:02.5]} 0-1

[Event "Early-Titled-Tuesday-Blitz-September-12-2023"]
[Site "Chess.com"]
[Date "2023.09.12"]
[Round "5"]
[White "inagreV"]
[Black "Artem_Sadovsky"]
[Result "0-1"]
[WhiteElo "2265"]
[BlackElo "2542"]
[TimeControl "180+1"]
[EndTime "8:53:10 PDT"]
[Termination "Artem_Sadovsky won by resignation"]

1. e4 {[%clk 0:02:57.6]} 1... g6 {[%clk 0:02:59.1]} 2. d4 {[%clk 0:02:57.2]}
2... Bg7 {[%clk 0:03:00]} 3. c4 {[%clk 0:02:56.9]} 3... d6 {[%clk 0:02:59.6]} 4.
Nc3 {[%clk 0:02:56.7]} 4... e5 {[%clk 0:03:00.5]} 5. Nge2 {[%clk 0:02:52.4]}
5... Nc6 {[%clk 0:02:59.9]} 6. Be3 {[%clk 0:02:51.8]} 6... f5 {[%clk 0:02:58.6]}
7. exf5 {[%clk 0:02:50.4]} 7... Bxf5 {[%clk 0:02:59.5]} 8. dxe5 {[%clk
0:02:49.2]} 8... Nxe5 {[%clk 0:02:59.4]} 9. Nd4 {[%clk 0:02:45.3]} 9... Bd7
{[%clk 0:02:59.7]} 10. Be2 {[%clk 0:02:43.4]} 10... Nf6 {[%clk 0:02:56]} 11. O-O
{[%clk 0:02:43.8]} 11... O-O {[%clk 0:02:52.9]} 12. Qb3 {[%clk 0:02:43]} 12...
Nfg4 {[%clk 0:02:22.2]} 13. c5+ {[%clk 0:02:36.1]} 13... Kh8 {[%clk 0:02:20.9]}
14. cxd6 {[%clk 0:02:35.2]} 14... Qh4 {[%clk 0:02:14.1]} 15. Bxg4 {[%clk
0:02:25.2]} 15... Nxg4 {[%clk 0:02:13.9]} 16. h3 {[%clk 0:02:17]} 16... Nxe3
{[%clk 0:02:11.5]} 17. fxe3 {[%clk 0:02:17.9]} 17... Bxd4 {[%clk 0:02:04.7]} 18.
exd4 {[%clk 0:02:11.4]} 18... Qxd4+ {[%clk 0:01:59.7]} 19. Kh1 {[%clk
0:02:11.8]} 19... Bc6 {[%clk 0:01:52.1]} 20. Ne2 {[%clk 0:01:42.6]} 20... Qe4
{[%clk 0:01:45.3]} 21. Qc3+ {[%clk 0:01:36.7]} 21... Kg8 {[%clk 0:01:44.6]} 22.
Rg1 {[%clk 0:01:11.1]} 22... Qxe2 {[%clk 0:01:43.4]} 23. dxc7 {[%clk 0:01:11.1]}
23... Rf3 {[%clk 0:01:42.3]} 24. Qxc6 {[%clk 0:00:53.6]} 24... bxc6 {[%clk
0:01:40]} 25. Rad1 {[%clk 0:00:53.9]} 25... Rff8 {[%clk 0:01:37.9]} 26. Rge1
{[%clk 0:00:52.6]} 26... Qxb2 {[%clk 0:01:35.5]} 27. Rd7 {[%clk 0:00:52.1]}
27... Qxa2 {[%clk 0:01:35.2]} 28. Ree7 {[%clk 0:00:50.9]} 28... Qa1+ {[%clk
0:01:35.8]} 29. Kh2 {[%clk 0:00:50.9]} 29... a5 {[%clk 0:01:35]} 30. h4 {[%clk
0:00:48.3]} 30... a4 {[%clk 0:01:34.9]} 31. h5 {[%clk 0:00:48.8]} 31... gxh5
{[%clk 0:01:35.8]} 32. Rxh7 {[%clk 0:00:48.5]} 32... Qe5+ {[%clk 0:01:35.4]} 33.
Kg1 {[%clk 0:00:47.5]} 33... a3 {[%clk 0:01:36.3]} 34. Rh6 {[%clk 0:00:45.8]}
34... Qg7 {[%clk 0:01:30.7]} 0-1

[Event "Early-Titled-Tuesday-Blitz-September-12-2023"]
[Site "Chess.com"]
[Date "2023.09.12"]
[Round "5"]
[White "Tssunami"]
[Black "Alexei_Gubajdullin"]
[Result "0-1"]
[WhiteElo "2441"]
[BlackElo "2619"]
[TimeControl "180+1"]
[EndTime "8:53:11 PDT"]
[Termination "Alexei_Gubajdullin won by resignation"]

1. d4 {[%clk 0:02:56.2]} 1... Nf6 {[%clk 0:02:59.8]} 2. c4 {[%clk 0:02:56.6]}
2... g6 {[%clk 0:03:00]} 3. Nc3 {[%clk 0:02:55.3]} 3... Bg7 {[%clk 0:03:00]} 4.
e4 {[%clk 0:02:54.6]} 4... d6 {[%clk 0:03:00.1]} 5. Be3 {[%clk 0:02:54.8]} 5...
O-O {[%clk 0:03:00.1]} 6. Be2 {[%clk 0:02:55.5]} 6... Na6 {[%clk 0:02:59.6]} 7.
h4 {[%clk 0:02:55.5]} 7... h5 {[%clk 0:02:58.6]} 8. Nf3 {[%clk 0:02:55.6]} 8...
c5 {[%clk 0:02:58.4]} 9. d5 {[%clk 0:02:50.9]} 9... e6 {[%clk 0:02:58.1]} 10.
dxe6 {[%clk 0:02:46.8]} 10... Bxe6 {[%clk 0:02:57.6]} 11. Ng5 {[%clk 0:02:47.1]}
11... Ng4 {[%clk 0:02:56.6]} 12. Nxe6 {[%clk 0:02:37.8]} 12... Nxe3 {[%clk
0:02:56.1]} 13. Nxd8 {[%clk 0:02:35.2]} 13... Nxd1 {[%clk 0:02:56]} 14. Rxd1
{[%clk 0:02:31.7]} 14... Raxd8 {[%clk 0:02:54.9]} 15. Nd5 {[%clk 0:02:25.7]}
15... Rfe8 {[%clk 0:02:51.9]} 16. f3 {[%clk 0:02:22.4]} 16... Kf8 {[%clk
0:02:48.3]} 17. b3 {[%clk 0:02:18.8]} 17... Bd4 {[%clk 0:02:47.2]} 18. b4 {[%clk
0:02:10.4]} 18... Nxb4 {[%clk 0:02:45.3]} 19. Rxd4 {[%clk 0:02:09.1]} 19... Nc2+
{[%clk 0:02:44.2]} 20. Kd2 {[%clk 0:02:09.7]} 20... Nxd4 {[%clk 0:02:44.1]} 21.
Rb1 {[%clk 0:02:10.3]} 21... Nxe2 {[%clk 0:02:39.2]} 22. Kxe2 {[%clk 0:02:09.5]}
22... b6 {[%clk 0:02:38.9]} 23. a4 {[%clk 0:02:09.8]} 23... Rb8 {[%clk 0:02:38]}
24. Kd3 {[%clk 0:02:10.1]} 24... Red8 {[%clk 0:02:37.1]} 25. g3 {[%clk
0:02:10.5]} 25... Rd7 {[%clk 0:02:33.2]} 26. Rg1 {[%clk 0:02:10.3]} 26... a6
{[%clk 0:02:32]} 27. Rb1 {[%clk 0:02:10]} 27... Rdb7 {[%clk 0:02:31.5]} 28. Nc3
{[%clk 0:02:08.6]} 28... Ke7 {[%clk 0:02:29.6]} 29. Ke3 {[%clk 0:02:08.6]} 29...
Ke6 {[%clk 0:02:29.6]} 30. Kd3 {[%clk 0:02:08.9]} 30... f5 {[%clk 0:02:29.5]}
31. exf5+ {[%clk 0:02:08.4]} 31... Kxf5 {[%clk 0:02:29.5]} 32. Nd5 {[%clk
0:01:57.7]} 32... b5 {[%clk 0:02:21.7]} 33. Re1 {[%clk 0:01:54.7]} 33... bxc4+
{[%clk 0:02:21.2]} 34. Kxc4 {[%clk 0:01:55.6]} 34... Rb4+ {[%clk 0:02:00.7]} 35.
Nxb4 {[%clk 0:01:54.3]} 35... Rxb4+ {[%clk 0:02:00.3]} 36. Kd5 {[%clk
0:01:54.8]} 36... Rd4+ {[%clk 0:01:59.7]} 37. Kc6 {[%clk 0:01:54.8]} 37... c4
{[%clk 0:01:59.6]} 38. a5 {[%clk 0:01:42.9]} 38... c3 {[%clk 0:01:58.7]} 39. Rc1
{[%clk 0:01:38.9]} 39... Rd3 {[%clk 0:01:52.7]} 40. Kb6 {[%clk 0:01:39.1]} 40...
d5 {[%clk 0:01:52.8]} 41. Kxa6 {[%clk 0:01:39.2]} 41... d4 {[%clk 0:01:53]} 42.
Kb5 {[%clk 0:01:39.6]} 42... Rxf3 {[%clk 0:01:51.4]} 43. a6 {[%clk 0:01:39.7]}
43... Rf2 {[%clk 0:01:50.3]} 44. Ra1 {[%clk 0:01:39.9]} 44... Kg4 {[%clk
0:01:44.6]} 45. a7 {[%clk 0:01:37]} 45... Rf8 {[%clk 0:01:43.9]} 46. Kc4 {[%clk
0:01:36.5]} 46... Ra8 {[%clk 0:01:41.5]} 47. Kxd4 {[%clk 0:01:35.9]} 47... c2
{[%clk 0:01:41.6]} 48. Ke5 {[%clk 0:01:31.6]} 48... Rxa7 {[%clk 0:01:39.2]} 49.
Rc1 {[%clk 0:01:27.6]} 49... Rc7 {[%clk 0:01:35.3]} 50. Kd6 {[%clk 0:01:27.4]}
50... Rc3 {[%clk 0:01:35]} 51. Ke5 {[%clk 0:01:25.7]} 51... Kxg3 {[%clk
0:01:35]} 52. Kf6 {[%clk 0:01:26.1]} 52... Kxh4 {[%clk 0:01:34.9]} 53. Kxg6
{[%clk 0:01:26.3]} 53... Kg4 {[%clk 0:01:35.1]} 54. Rg1+ {[%clk 0:01:26.6]}
54... Kf3 {[%clk 0:01:35.2]} 55. Rc1 {[%clk 0:01:26.8]} 55... h4 {[%clk
0:01:33.6]} 0-1

[Event "Early-Titled-Tuesday-Blitz-September-12-2023"]
[Site "Chess.com"]
[Date "2023.09.12"]
[Round "5"]
[White "Amirreza_p"]
[Black "reniite"]
[Result "1-0"]
[WhiteElo "2571"]
[BlackElo "2368"]
[TimeControl "180+1"]
[EndTime "8:53:16 PDT"]
[Termination "Amirreza_p won by resignation"]

1. Nf3 {[%clk 0:02:57.1]} 1... d5 {[%clk 0:02:59.7]} 2. c4 {[%clk 0:02:50.7]}
2... e6 {[%clk 0:03:00.6]} 3. g3 {[%clk 0:02:48]} 3... Nf6 {[%clk 0:02:59.4]} 4.
Bg2 {[%clk 0:02:48.5]} 4... c5 {[%clk 0:02:56.7]} 5. cxd5 {[%clk 0:02:47.9]}
5... exd5 {[%clk 0:02:56.8]} 6. d4 {[%clk 0:02:46.5]} 6... Nc6 {[%clk
0:02:53.8]} 7. O-O {[%clk 0:02:45.1]} 7... b6 {[%clk 0:02:48.4]} 8. Nc3 {[%clk
0:02:43.8]} 8... Be7 {[%clk 0:02:47.2]} 9. b3 {[%clk 0:02:39.7]} 9... O-O {[%clk
0:02:32.9]} 10. Bb2 {[%clk 0:02:38.6]} 10... Ne4 {[%clk 0:02:19.3]} 11. Na4
{[%clk 0:02:36.2]} 11... Bb7 {[%clk 0:01:47.2]} 12. Rc1 {[%clk 0:02:34.9]} 12...
c4 {[%clk 0:01:37.7]} 13. bxc4 {[%clk 0:02:22]} 13... dxc4 {[%clk 0:01:38.6]}
14. d5 {[%clk 0:02:20]} 14... Na5 {[%clk 0:01:37.2]} 15. Qd4 {[%clk 0:02:14.6]}
15... Nf6 {[%clk 0:01:35.8]} 16. e4 {[%clk 0:01:54.7]} 16... Re8 {[%clk
0:01:18.5]} 17. Rfd1 {[%clk 0:01:48.7]} 17... b5 {[%clk 0:01:11.8]} 18. Nc5
{[%clk 0:01:41.2]} 18... Bxc5 {[%clk 0:01:04.5]} 19. Qxc5 {[%clk 0:01:42.1]}
19... Nxe4 {[%clk 0:00:55.3]} 20. Qxb5 {[%clk 0:01:41.9]} 20... Nd6 {[%clk
0:00:41.5]} 21. Qc5 {[%clk 0:01:38.9]} 21... Qb6 {[%clk 0:00:33.2]} 22. Bd4
{[%clk 0:01:36]} 22... Qxc5 {[%clk 0:00:32.4]} 23. Bxc5 {[%clk 0:01:36.9]} 23...
Ne4 {[%clk 0:00:32.4]} 24. Bb4 {[%clk 0:01:36.5]} 24... Bxd5 {[%clk 0:00:23.8]}
25. Rxd5 {[%clk 0:01:34.2]} 25... Nc6 {[%clk 0:00:24.4]} 26. Be1 {[%clk
0:01:32]} 26... c3 {[%clk 0:00:20.5]} 27. Bxc3 {[%clk 0:01:30.1]} 27... Nxc3
{[%clk 0:00:20.7]} 28. Rxc3 {[%clk 0:01:30.9]} 28... Nb4 {[%clk 0:00:21.6]} 29.
Rd2 {[%clk 0:01:28.1]} 1-0